[Event "Late-Titled-Tuesday-Blitz-April-23-2024"]
[Site "Chess.com"]
[Date "2024.04.23"]
[Round "4"]
[White "SerGo055"]
[Black "ChessBrainiacOnTwitch"]
[Result "1-0"]
[WhiteElo "2610"]
[BlackElo "2793"]
[TimeControl "180+1"]
[EndTime "14:42:11 PDT"]
[Termination "SerGo055 won by checkmate"]

1. d4 {[%clk 0:02:59.8]} 1... Nf6 {[%clk 0:02:59.8]} 2. Nf3 {[%clk 0:03:00.3]}
2... e6 {[%clk 0:02:59.7]} 3. Bf4 {[%clk 0:03:00.5]} 3... b6 {[%clk 0:02:54.2]}
4. e3 {[%clk 0:03:00.4]} 4... Bb7 {[%clk 0:02:54.9]} 5. Nbd2 {[%clk 0:02:53]}
5... c5 {[%clk 0:02:53.8]} 6. c3 {[%clk 0:02:52.5]} 6... Nc6 {[%clk 0:02:46.7]}
7. h3 {[%clk 0:02:51.7]} 7... Be7 {[%clk 0:02:46.5]} 8. Bd3 {[%clk 0:02:51.6]}
8... O-O {[%clk 0:02:46.5]} 9. O-O {[%clk 0:02:51.5]} 9... d5 {[%clk 0:02:46.1]}
10. Qe2 {[%clk 0:02:50.4]} 10... Bd6 {[%clk 0:02:42.4]} 11. Ne5 {[%clk
0:02:48.2]} 11... Rc8 {[%clk 0:02:36.3]} 12. Bh2 {[%clk 0:02:43.8]} 12... Qc7
{[%clk 0:02:18.1]} 13. f4 {[%clk 0:02:41.9]} 13... Ne7 {[%clk 0:02:14.5]} 14. g4
{[%clk 0:02:40]} 14... Ne4 {[%clk 0:02:13.7]} 15. Rae1 {[%clk 0:02:25.7]} 15...
f6 {[%clk 0:02:08]} 16. Nef3 {[%clk 0:02:25]} 16... c4 {[%clk 0:02:01.2]} 17.
Bxe4 {[%clk 0:02:14.8]} 17... dxe4 {[%clk 0:02:00.9]} 18. Nh4 {[%clk 0:02:14.8]}
18... f5 {[%clk 0:01:54.3]} 19. Kh1 {[%clk 0:02:09.4]} 19... b5 {[%clk
0:01:50.8]} 20. Rg1 {[%clk 0:02:09.2]} 20... Kh8 {[%clk 0:01:48.3]} 21. Rg2
{[%clk 0:02:09]} 21... g6 {[%clk 0:01:46.3]} 22. Reg1 {[%clk 0:02:09]} 22... Qd8
{[%clk 0:01:42.7]} 23. Bg3 {[%clk 0:02:04.5]} 23... Nd5 {[%clk 0:01:39.4]} 24.
Be1 {[%clk 0:02:03.7]} 24... Qe7 {[%clk 0:01:37]} 25. gxf5 {[%clk 0:02:01.9]}
25... gxf5 {[%clk 0:01:18.8]} 26. Qh5 {[%clk 0:02:00.5]} 26... Rg8 {[%clk
0:01:03.1]} 27. Bf2 {[%clk 0:02:00.4]} 27... Rxg2 {[%clk 0:00:30.6]} 28. Rxg2
{[%clk 0:01:59.3]} 28... Rg8 {[%clk 0:00:31.5]} 29. Rxg8+ {[%clk 0:00:44.2]}
29... Kxg8 {[%clk 0:00:32.4]} 30. Ng2 {[%clk 0:00:41]} 30... a5 {[%clk
0:00:30.2]} 31. Bh4 {[%clk 0:00:40.9]} 31... Qf7 {[%clk 0:00:29.3]} 32. Qg5+
{[%clk 0:00:40.9]} 32... Qg7 {[%clk 0:00:25.8]} 33. Qd8+ {[%clk 0:00:39.9]}
33... Bf8 {[%clk 0:00:26.3]} 34. Qxa5 {[%clk 0:00:39.3]} 34... b4 {[%clk
0:00:19.3]} 35. Nxc4 {[%clk 0:00:37.7]} 35... bxc3 {[%clk 0:00:19.3]} 36. bxc3
{[%clk 0:00:38]} 36... Qd7 {[%clk 0:00:11.2]} 37. Ne5 {[%clk 0:00:37]} 37... Qc8
{[%clk 0:00:11.4]} 38. c4 {[%clk 0:00:36.8]} 38... Nb4 {[%clk 0:00:09.9]} 39. a3
{[%clk 0:00:34.9]} 39... Nd3 {[%clk 0:00:10.3]} 40. Qd8 {[%clk 0:00:31.7]} 40...
Qxd8 {[%clk 0:00:06.2]} 41. Bxd8 {[%clk 0:00:31.1]} 41... Bxa3 {[%clk
0:00:06.7]} 42. c5 {[%clk 0:00:26.2]} 42... Bd5 {[%clk 0:00:06]} 43. Kg1 {[%clk
0:00:23.5]} 43... Nb4 {[%clk 0:00:05.1]} 44. Kf2 {[%clk 0:00:22.5]} 44... Kf8
{[%clk 0:00:05.7]} 45. Ba5 {[%clk 0:00:21.3]} 45... Na6 {[%clk 0:00:05.3]} 46.
Ne1 {[%clk 0:00:13.4]} 46... Ke8 {[%clk 0:00:05.6]} 47. Nc2 {[%clk 0:00:13.6]}
47... Bc1 {[%clk 0:00:05.1]} 48. Bc3 {[%clk 0:00:11.8]} 48... Bb3 {[%clk
0:00:05.1]} 49. Nb4 {[%clk 0:00:10.6]} 49... Nc7 {[%clk 0:00:05.7]} 50. Ke2
{[%clk 0:00:10.4]} 50... Nb5 {[%clk 0:00:06.3]} 51. Bd2 {[%clk 0:00:10.3]} 51...
Ba3 {[%clk 0:00:06.6]} 52. Nbc6 {[%clk 0:00:08.7]} 52... Nc7 {[%clk 0:00:07.1]}
53. Na5 {[%clk 0:00:08.9]} 53... Ba4 {[%clk 0:00:06.5]} 54. Nac4 {[%clk
0:00:08.8]} 54... Bb5 {[%clk 0:00:06.7]} 55. Ke1 {[%clk 0:00:08.8]} 55... Bb2
{[%clk 0:00:02.5]} 56. Nxb2 {[%clk 0:00:09]} 56... Nd5 {[%clk 0:00:03.4]} 57.
Nbc4 {[%clk 0:00:09]} 57... Kd8 {[%clk 0:00:03.6]} 58. Nd6 {[%clk 0:00:09.2]}
58... Bd3 {[%clk 0:00:03.6]} 59. Nxd3 {[%clk 0:00:08.4]} 59... exd3 {[%clk
0:00:04.5]} 60. e4 {[%clk 0:00:08.4]} 60... Nf6 {[%clk 0:00:04.4]} 61. exf5
{[%clk 0:00:08.6]} 61... exf5 {[%clk 0:00:05.3]} 62. Nxf5 {[%clk 0:00:09.2]}
62... Kd7 {[%clk 0:00:06.2]} 63. Kf2 {[%clk 0:00:09.4]} 63... Ke6 {[%clk
0:00:05.9]} 64. Ng3 {[%clk 0:00:09.6]} 64... Kd5 {[%clk 0:00:06.2]} 65. Ke3
{[%clk 0:00:09.9]} 65... Kc4 {[%clk 0:00:07.1]} 66. f5 {[%clk 0:00:09]} 66...
Nd5+ {[%clk 0:00:08]} 67. Ke4 {[%clk 0:00:09.3]} 67... Nc3+ {[%clk 0:00:07.8]}
68. Bxc3 {[%clk 0:00:09.4]} 68... Kxc3 {[%clk 0:00:08.7]} 69. Ke5 {[%clk
0:00:10]} 69... d2 {[%clk 0:00:08.1]} 70. Ne4+ {[%clk 0:00:10.9]} 70... Kc2
{[%clk 0:00:01.5]} 71. Nxd2 {[%clk 0:00:11.8]} 71... h5 {[%clk 0:00:02.3]} 72.
Ne4 {[%clk 0:00:11.6]} 72... h4 {[%clk 0:00:03.2]} 73. f6 {[%clk 0:00:12.1]}
73... Kd3 {[%clk 0:00:04.1]} 74. f7 {[%clk 0:00:13]} 74... Ke2 {[%clk
0:00:04.7]} 75. f8=Q {[%clk 0:00:13.7]} 75... Kd1 {[%clk 0:00:05.6]} 76. Qf2
{[%clk 0:00:13.2]} 76... Kc1 {[%clk 0:00:06.2]} 77. Qd2+ {[%clk 0:00:13.6]}
77... Kb1 {[%clk 0:00:06.8]} 78. Nc3+ {[%clk 0:00:14.3]} 78... Ka1 {[%clk
0:00:07.7]} 79. Qc1# {[%clk 0:00:13.4]} 1-0

[Event "Late-Titled-Tuesday-Blitz-April-23-2024"]
[Site "Chess.com"]
[Date "2024.04.23"]
[Round "4"]
[White "Onischuk_V"]
[Black "Njal28"]
[Result "1-0"]
[WhiteElo "2843"]
[BlackElo "3021"]
[TimeControl "180+1"]
[EndTime "14:42:17 PDT"]
[Termination "Onischuk_V won by checkmate"]

1. e4 {[%clk 0:02:59]} 1... c6 {[%clk 0:03:00.1]} 2. d4 {[%clk 0:02:58.5]} 2...
d5 {[%clk 0:03:00.6]} 3. Nc3 {[%clk 0:02:57.3]} 3... dxe4 {[%clk 0:03:00.1]} 4.
Nxe4 {[%clk 0:02:57.6]} 4... Nf6 {[%clk 0:03:00.8]} 5. Nxf6+ {[%clk 0:02:57.1]}
5... gxf6 {[%clk 0:03:01]} 6. g3 {[%clk 0:02:53.2]} 6... Qd5 {[%clk 0:02:56.9]}
7. Nf3 {[%clk 0:02:52.2]} 7... Bg4 {[%clk 0:02:54.8]} 8. Bg2 {[%clk 0:02:52.4]}
8... Nd7 {[%clk 0:02:46]} 9. O-O {[%clk 0:02:51.1]} 9... Qh5 {[%clk 0:02:37.3]}
10. c4 {[%clk 0:02:16.9]} 10... O-O-O {[%clk 0:02:35.5]} 11. Qb3 {[%clk
0:02:16.6]} 11... e6 {[%clk 0:02:23.8]} 12. Bf4 {[%clk 0:02:08.6]} 12... e5
{[%clk 0:02:23.8]} 13. Bd2 {[%clk 0:01:20.5]} 13... exd4 {[%clk 0:01:41.7]} 14.
Nxd4 {[%clk 0:01:20.4]} 14... Nc5 {[%clk 0:01:42.3]} 15. Qe3 {[%clk 0:01:19.8]}
15... Bd6 {[%clk 0:01:25.2]} 16. Rfe1 {[%clk 0:01:17]} 16... Bh3 {[%clk
0:01:08.4]} 17. Bxh3+ {[%clk 0:01:07.9]} 17... Qxh3 {[%clk 0:01:09.3]} 18. Bc3
{[%clk 0:01:07.8]} 18... h5 {[%clk 0:00:56.7]} 19. Qf3 {[%clk 0:01:04.7]} 19...
h4 {[%clk 0:00:51.6]} 20. Qf5+ {[%clk 0:01:01.4]} 20... Qxf5 {[%clk 0:00:52.3]}
21. Nxf5 {[%clk 0:01:01.5]} 21... hxg3 {[%clk 0:00:52.9]} 22. hxg3 {[%clk
0:00:59.1]} 22... Nd3 {[%clk 0:00:47.9]} 23. Bxf6 {[%clk 0:00:51.2]} 23... Nxe1
{[%clk 0:00:48.1]} 24. Rxe1 {[%clk 0:00:50.4]} 24... Bb4 {[%clk 0:00:41.4]} 25.
Rc1 {[%clk 0:00:29.6]} 25... Rh5 {[%clk 0:00:27.2]} 26. Bxd8 {[%clk 0:00:29.3]}
26... Rxf5 {[%clk 0:00:27.6]} 27. Bh4 {[%clk 0:00:29.5]} 27... Rf3 {[%clk
0:00:22.3]} 28. Kg2 {[%clk 0:00:27.8]} 28... Rd3 {[%clk 0:00:22.9]} 29. Bg5
{[%clk 0:00:26.4]} 29... Kd7 {[%clk 0:00:22.3]} 30. Be3 {[%clk 0:00:24.6]} 30...
a6 {[%clk 0:00:20.8]} 31. Kf3 {[%clk 0:00:21.9]} 31... Ke6 {[%clk 0:00:21]} 32.
Ke2 {[%clk 0:00:21.2]} 32... Rd8 {[%clk 0:00:21.2]} 33. Rh1 {[%clk 0:00:21.6]}
33... Be7 {[%clk 0:00:20.1]} 34. g4 {[%clk 0:00:20.6]} 34... b5 {[%clk
0:00:16.5]} 35. Rh6+ {[%clk 0:00:18.3]} 35... f6 {[%clk 0:00:16.7]} 36. cxb5
{[%clk 0:00:17.6]} 36... axb5 {[%clk 0:00:17]} 37. g5 {[%clk 0:00:17.9]} 37...
Kf5 {[%clk 0:00:14.1]} 38. gxf6 {[%clk 0:00:14.9]} 38... Bxf6 {[%clk 0:00:14.3]}
39. Rh5+ {[%clk 0:00:12.9]} 39... Ke6 {[%clk 0:00:12.3]} 40. Rc5 {[%clk
0:00:12.4]} 40... Kd7 {[%clk 0:00:09.8]} 41. b3 {[%clk 0:00:12.6]} 41... Ra8
{[%clk 0:00:10.3]} 42. Rc2 {[%clk 0:00:12.8]} 42... Be7 {[%clk 0:00:08.2]} 43.
f4 {[%clk 0:00:12.8]} 43... Bd6 {[%clk 0:00:07.6]} 44. Kf3 {[%clk 0:00:13.2]}
44... Rh8 {[%clk 0:00:07.5]} 45. Ke4 {[%clk 0:00:13]} 45... Re8+ {[%clk
0:00:07.6]} 46. Kf3 {[%clk 0:00:13.4]} 46... Rh8 {[%clk 0:00:07.2]} 47. Bd4
{[%clk 0:00:12.6]} 47... Rh3+ {[%clk 0:00:07.3]} 48. Ke4 {[%clk 0:00:12.5]}
48... Rh1 {[%clk 0:00:06.3]} 49. Re2 {[%clk 0:00:10.3]} 49... c5 {[%clk
0:00:05.4]} 50. Be5 {[%clk 0:00:10.3]} 50... Bf8 {[%clk 0:00:05]} 51. Rd2+
{[%clk 0:00:09.4]} 51... Kc6 {[%clk 0:00:05]} 52. f5 {[%clk 0:00:09.6]} 52...
Rh4+ {[%clk 0:00:03.8]} 53. Kf3 {[%clk 0:00:09.4]} 53... c4 {[%clk 0:00:04.5]}
54. bxc4 {[%clk 0:00:08.7]} 54... bxc4 {[%clk 0:00:05.4]} 55. f6 {[%clk
0:00:09]} 55... Rh5 {[%clk 0:00:05.2]} 56. Ke4 {[%clk 0:00:08.9]} 56... Rh1
{[%clk 0:00:05.6]} 57. Kf5 {[%clk 0:00:08.8]} 57... Bb4 {[%clk 0:00:05.6]} 58.
Re2 {[%clk 0:00:07.1]} 58... Kd7 {[%clk 0:00:03.6]} 59. f7 {[%clk 0:00:06.2]}
59... Ke7 {[%clk 0:00:02.2]} 60. Bc3+ {[%clk 0:00:06.3]} 60... Kxf7 {[%clk
0:00:02.8]} 61. Bxb4 {[%clk 0:00:06.9]} 61... Rb1 {[%clk 0:00:03.1]} 62. Bc3
{[%clk 0:00:06.8]} 62... Rf1+ {[%clk 0:00:02.3]} 63. Ke4 {[%clk 0:00:05.8]}
63... Rc1 {[%clk 0:00:03.2]} 64. Kd4 {[%clk 0:00:05.2]} 64... Rh1 {[%clk
0:00:02.8]} 65. Kxc4 {[%clk 0:00:05.7]} 65... Rh5 {[%clk 0:00:02.9]} 66. Kb3
{[%clk 0:00:06]} 66... Rh4 {[%clk 0:00:03.4]} 67. a4 {[%clk 0:00:05.8]} 67...
Rh6 {[%clk 0:00:03.7]} 68. a5 {[%clk 0:00:06.2]} 68... Rg6 {[%clk 0:00:04.6]}
69. Rd2 {[%clk 0:00:05.5]} 69... Ra6 {[%clk 0:00:05.5]} 70. Ra2 {[%clk
0:00:05.4]} 70... Ke7 {[%clk 0:00:06.1]} 71. Kc4 {[%clk 0:00:06]} 71... Kd7
{[%clk 0:00:06.9]} 72. Kb5 {[%clk 0:00:06.4]} 72... Re6 {[%clk 0:00:07.4]} 73.
Bd4 {[%clk 0:00:06.6]} 73... Kc7 {[%clk 0:00:07.3]} 74. a6 {[%clk 0:00:07]}
74... Kb8 {[%clk 0:00:08.2]} 75. Bc5 {[%clk 0:00:07.4]} 75... Ka8 {[%clk
0:00:08.6]} 76. Rh2 {[%clk 0:00:07.7]} 76... Re8 {[%clk 0:00:09.5]} 77. Rh7
{[%clk 0:00:07.9]} 77... Rb8+ {[%clk 0:00:10.2]} 78. Bb6 {[%clk 0:00:08.1]}
78... Re8 {[%clk 0:00:10]} 79. Kc6 {[%clk 0:00:08.3]} 79... Rc8+ {[%clk
0:00:09.7]} 80. Bc7 {[%clk 0:00:08.3]} 80... Rg8 {[%clk 0:00:09.5]} 81. Rh5
{[%clk 0:00:08.4]} 81... Ka7 {[%clk 0:00:08.9]} 82. Rb5 {[%clk 0:00:08]} 82...
Rg6+ {[%clk 0:00:08.4]} 83. Bd6 {[%clk 0:00:08.1]} 83... Kxa6 {[%clk 0:00:08]}
84. Rb8 {[%clk 0:00:06.6]} 84... Ka7 {[%clk 0:00:06.7]} 85. Rb4 {[%clk
0:00:06.5]} 85... Rg4 {[%clk 0:00:01.4]} 86. Rxg4 {[%clk 0:00:06.1]} 86... Ka8
{[%clk 0:00:02.1]} 87. Ra4# {[%clk 0:00:06.2]} 1-0

[Event "Late-Titled-Tuesday-Blitz-April-23-2024"]
[Site "Chess.com"]
[Date "2024.04.23"]
[Round "4"]
[White "Nimrod_Veinberg"]
[Black "ahkashefi2800"]
[Result "1-0"]
[WhiteElo "2822"]
[BlackElo "2597"]
[TimeControl "180+1"]
[EndTime "14:42:23 PDT"]
[Termination "Nimrod_Veinberg won on time"]

1. e4 {[%clk 0:03:00.9]} 1... c6 {[%clk 0:02:54.7]} 2. d4 {[%clk 0:03:00.6]}
2... d5 {[%clk 0:02:54.2]} 3. Nd2 {[%clk 0:03:01.2]} 3... dxe4 {[%clk
0:02:53.8]} 4. Nxe4 {[%clk 0:03:02.1]} 4... Nd7 {[%clk 0:02:53.7]} 5. Nf3 {[%clk
0:03:00.8]} 5... Ngf6 {[%clk 0:02:50.3]} 6. Nc3 {[%clk 0:03:00.7]} 6... e6
{[%clk 0:02:49.3]} 7. Bf4 {[%clk 0:02:49.6]} 7... Bb4 {[%clk 0:02:46.1]} 8. Bd3
{[%clk 0:02:48.8]} 8... O-O {[%clk 0:02:41.7]} 9. O-O {[%clk 0:02:48.2]} 9...
Re8 {[%clk 0:02:38.3]} 10. a3 {[%clk 0:02:41.5]} 10... Ba5 {[%clk 0:02:25.5]}
11. Qe2 {[%clk 0:02:22]} 11... Nf8 {[%clk 0:02:21.7]} 12. Ne4 {[%clk 0:02:15]}
12... Nxe4 {[%clk 0:02:14.8]} 13. Bxe4 {[%clk 0:02:08.6]} 13... Ng6 {[%clk
0:02:15.7]} 14. Bg5 {[%clk 0:02:03.1]} 14... Qd6 {[%clk 0:02:08.4]} 15. Bxg6
{[%clk 0:01:50.3]} 15... hxg6 {[%clk 0:02:04.4]} 16. c4 {[%clk 0:01:50.9]} 16...
Bc7 {[%clk 0:01:57.7]} 17. Bh4 {[%clk 0:01:50.1]} 17... c5 {[%clk 0:01:09.1]}
18. Bg3 {[%clk 0:01:46.7]} 18... Qe7 {[%clk 0:01:00.9]} 19. Bxc7 {[%clk
0:01:44.4]} 19... Qxc7 {[%clk 0:01:00.2]} 20. dxc5 {[%clk 0:01:45]} 20... Qxc5
{[%clk 0:00:59.6]} 21. Ne5 {[%clk 0:01:45.5]} 21... Qc7 {[%clk 0:00:54.1]} 22.
Rad1 {[%clk 0:01:37.9]} 22... Re7 {[%clk 0:00:44.5]} 23. Rd3 {[%clk 0:01:14.5]}
23... Bd7 {[%clk 0:00:43.1]} 24. Rfd1 {[%clk 0:01:12.4]} 24... Bc6 {[%clk
0:00:42.7]} 25. b4 {[%clk 0:01:01.6]} 25... a6 {[%clk 0:00:39]} 26. Qe3 {[%clk
0:00:49]} 26... Rae8 {[%clk 0:00:30.3]} 27. Qc5 {[%clk 0:00:34.2]} 27... Ba4
{[%clk 0:00:16.2]} 28. Qxc7 {[%clk 0:00:27.9]} 28... Rxc7 {[%clk 0:00:16.8]} 29.
Rc1 {[%clk 0:00:25.1]} 29... Rec8 {[%clk 0:00:13.4]} 30. c5 {[%clk 0:00:21.7]}
30... Be8 {[%clk 0:00:09.6]} 31. Rd6 {[%clk 0:00:14.5]} 31... f6 {[%clk
0:00:06.8]} 32. Nc4 {[%clk 0:00:14.1]} 32... e5 {[%clk 0:00:05.9]} 33. Nb6
{[%clk 0:00:13.8]} 33... Rb8 {[%clk 0:00:05.3]} 34. f3 {[%clk 0:00:11.7]} 34...
Bc6 {[%clk 0:00:05.3]} 35. h4 {[%clk 0:00:11.1]} 35... Re8 {[%clk 0:00:05.5]}
36. Kf2 {[%clk 0:00:09.7]} 36... e4 {[%clk 0:00:05.4]} 37. Re1 {[%clk
0:00:07.5]} 37... Rce7 {[%clk 0:00:04.9]} 38. fxe4 {[%clk 0:00:05.7]} 38... Rxe4
{[%clk 0:00:05.8]} 39. Rxe4 {[%clk 0:00:05.7]} 39... Rxe4 {[%clk 0:00:06.3]} 40.
g3 {[%clk 0:00:06.3]} 40... Rg4 {[%clk 0:00:03.8]} 41. Rd8+ {[%clk 0:00:05.8]}
41... Kh7 {[%clk 0:00:02.5]} 42. Rd3 {[%clk 0:00:06.7]} 42... g5 {[%clk
0:00:02]} 43. hxg5 {[%clk 0:00:06.5]} 43... Rxg5 {[%clk 0:00:02.1]} 44. Nc8
{[%clk 0:00:05.2]} 44... Rf5+ {[%clk 0:00:02.2]} 45. Ke1 {[%clk 0:00:05.5]}
45... Re5+ {[%clk 0:00:02.3]} 46. Kd2 {[%clk 0:00:05.5]} 46... Bb5 {[%clk
0:00:02.6]} 47. Re3 {[%clk 0:00:05.6]} 47... Rd5+ {[%clk 0:00:02.5]} 48. Kc3
{[%clk 0:00:06.2]} 48... Rd7 {[%clk 0:00:02.6]} 49. Nd6 {[%clk 0:00:06.7]} 49...
Bc6 {[%clk 0:00:02.8]} 50. Kb3 {[%clk 0:00:05.7]} 50... Rc7 {[%clk 0:00:02.9]}
51. a4 {[%clk 0:00:05.7]} 51... Bd5+ {[%clk 0:00:02.8]} 52. Kc3 {[%clk 0:00:06]}
52... Bc6 {[%clk 0:00:03.1]} 53. Kb3 {[%clk 0:00:04.7]} 53... Bd5+ {[%clk
0:00:02.8]} 54. Kc3 {[%clk 0:00:03.8]} 54... Kg6 {[%clk 0:00:03.1]} 55. Kd4
{[%clk 0:00:03.5]} 55... Bc6 {[%clk 0:00:03.2]} 56. b5 {[%clk 0:00:04.1]} 56...
axb5 {[%clk 0:00:03.7]} 57. axb5 {[%clk 0:00:05]} 57... Bg2 {[%clk 0:00:02.7]}
58. b6 {[%clk 0:00:05.3]} 58... Rd7 {[%clk 0:00:02.6]} 59. Re2 {[%clk 0:00:05]}
59... Bc6 {[%clk 0:00:03]} 60. Ra2 {[%clk 0:00:03.7]} 60... Re7 {[%clk
0:00:03.1]} 61. Ra8 {[%clk 0:00:03.6]} 61... Kg5 {[%clk 0:00:03.1]} 62. Ra3
{[%clk 0:00:02.5]} 62... Kg4 {[%clk 0:00:02.9]} 63. Rc3 {[%clk 0:00:03.1]} 63...
g6 {[%clk 0:00:03.1]} 64. Nc4 {[%clk 0:00:03]} 64... Re4+ {[%clk 0:00:03]} 65.
Kd3 {[%clk 0:00:02.9]} 65... Kxg3 {[%clk 0:00:03.5]} 66. Na5 {[%clk 0:00:02.4]}
66... Re6 {[%clk 0:00:03.1]} 67. Nxc6 {[%clk 0:00:02.3]} 67... Rxc6 {[%clk
0:00:04]} 68. Kc4+ {[%clk 0:00:02.5]} 68... Kf4 {[%clk 0:00:04.2]} 69. Rd3
{[%clk 0:00:02.9]} 69... g5 {[%clk 0:00:04.3]} 70. Rd7 {[%clk 0:00:03.8]} 70...
g4 {[%clk 0:00:04.2]} 71. Rxb7 {[%clk 0:00:04.5]} 71... g3 {[%clk 0:00:04.4]}
72. Rg7 {[%clk 0:00:05.4]} 72... f5 {[%clk 0:00:04.5]} 73. b7 {[%clk 0:00:05.3]}
73... Ra6 {[%clk 0:00:03.1]} 74. b8=Q+ {[%clk 0:00:05.7]} 74... Kf3 {[%clk
0:00:01.5]} 75. Qxg3+ {[%clk 0:00:06.6]} 75... Ke4 {[%clk 0:00:01.2]} 76. Re7+
{[%clk 0:00:07.2]} 1-0

[Event "Late-Titled-Tuesday-Blitz-April-23-2024"]
[Site "Chess.com"]
[Date "2024.04.23"]
[Round "4"]
[White "mjelcic"]
[Black "Nf3c5"]
[Result "1-0"]
[WhiteElo "2375"]
[BlackElo "2621"]
[TimeControl "180+1"]
[EndTime "14:42:48 PDT"]
[Termination "mjelcic won on time"]

1. c4 {[%clk 0:03:00.9]} 1... Nf6 {[%clk 0:02:57.1]} 2. Nc3 {[%clk 0:03:01]}
2... g6 {[%clk 0:02:55]} 3. g3 {[%clk 0:03:01.3]} 3... Bg7 {[%clk 0:02:54.7]} 4.
Bg2 {[%clk 0:03:02.2]} 4... O-O {[%clk 0:02:54.7]} 5. d3 {[%clk 0:03:00.4]} 5...
d6 {[%clk 0:02:52.7]} 6. e4 {[%clk 0:03:00.6]} 6... c5 {[%clk 0:02:43.8]} 7.
Nge2 {[%clk 0:03:00.5]} 7... Nc6 {[%clk 0:02:44.3]} 8. O-O {[%clk 0:03:00.2]}
8... Ne8 {[%clk 0:02:38.8]} 9. f4 {[%clk 0:02:56.6]} 9... Nc7 {[%clk 0:02:38.8]}
10. Be3 {[%clk 0:02:56]} 10... Ne6 {[%clk 0:02:37.7]} 11. Qd2 {[%clk 0:02:53.4]}
11... Ned4 {[%clk 0:02:33.2]} 12. f5 {[%clk 0:02:43.6]} 12... e6 {[%clk
0:02:25.8]} 13. fxg6 {[%clk 0:02:20.6]} 13... fxg6 {[%clk 0:02:19.5]} 14. Rxf8+
{[%clk 0:02:19.5]} 14... Qxf8 {[%clk 0:02:18]} 15. Rf1 {[%clk 0:02:20.1]} 15...
Qe7 {[%clk 0:02:15.1]} 16. Bg5 {[%clk 0:02:19.3]} 16... Qe8 {[%clk 0:02:04.6]}
17. Bf6 {[%clk 0:02:10.9]} 17... Bxf6 {[%clk 0:02:01.7]} 18. Rxf6 {[%clk
0:02:10.2]} 18... Qe7 {[%clk 0:02:01.2]} 19. Rf1 {[%clk 0:02:07.4]} 19... Bd7
{[%clk 0:02:00]} 20. Nxd4 {[%clk 0:02:00.6]} 20... Nxd4 {[%clk 0:01:54]} 21. e5
{[%clk 0:01:57.2]} 21... Bc6 {[%clk 0:01:23.1]} 22. exd6 {[%clk 0:01:48.6]}
22... Qxd6 {[%clk 0:01:21.9]} 23. Bxc6 {[%clk 0:01:48]} 23... Nxc6 {[%clk
0:01:07.8]} 24. Ne4 {[%clk 0:01:34.8]} 24... Qd4+ {[%clk 0:01:07]} 25. Qf2
{[%clk 0:01:35]} 25... Qxf2+ {[%clk 0:01:02.3]} 26. Rxf2 {[%clk 0:01:33.3]}
26... b6 {[%clk 0:01:02.8]} 27. Ng5 {[%clk 0:01:27.6]} 27... Nd4 {[%clk
0:00:59.3]} 28. Ne4 {[%clk 0:01:23.7]} 28... Rd8 {[%clk 0:00:58]} 29. Kf1 {[%clk
0:01:20.6]} 29... Kg7 {[%clk 0:00:57.6]} 30. Ke1 {[%clk 0:01:17.6]} 30... Nc6
{[%clk 0:00:58]} 31. Ke2 {[%clk 0:01:15.7]} 31... h6 {[%clk 0:00:56.9]} 32. a3
{[%clk 0:01:14.1]} 32... Ne5 {[%clk 0:00:55]} 33. Rf6 {[%clk 0:01:06.3]} 33...
Re8 {[%clk 0:00:37.7]} 34. Rf1 {[%clk 0:01:00.8]} 34... Rd8 {[%clk 0:00:34.7]}
35. Rf6 {[%clk 0:00:57.8]} 35... Nc6 {[%clk 0:00:35.1]} 36. Ke3 {[%clk 0:00:53]}
36... Nd4 {[%clk 0:00:35.7]} 37. Rf2 {[%clk 0:00:49.9]} 37... Nf5+ {[%clk
0:00:33.1]} 38. Kd2 {[%clk 0:00:47.8]} 38... Nd4 {[%clk 0:00:33.3]} 39. Kc3
{[%clk 0:00:46.7]} 39... Nf5 {[%clk 0:00:26]} 40. b4 {[%clk 0:00:42.5]} 40...
cxb4+ {[%clk 0:00:18.3]} 41. axb4 {[%clk 0:00:42]} 41... Rd7 {[%clk 0:00:18.8]}
42. Ra2 {[%clk 0:00:40.6]} 42... e5 {[%clk 0:00:13.9]} 43. Re2 {[%clk
0:00:27.4]} 43... Nd4 {[%clk 0:00:13.8]} 44. Ra2 {[%clk 0:00:26.8]} 44... Ne6
{[%clk 0:00:12.7]} 45. b5 {[%clk 0:00:25.5]} 45... Nd4 {[%clk 0:00:11.2]} 46.
Rf2 {[%clk 0:00:24]} 46... Ne6 {[%clk 0:00:08.5]} 47. Rf6 {[%clk 0:00:23.9]}
47... Ng5 {[%clk 0:00:08.6]} 48. Rc6 {[%clk 0:00:21.3]} 48... Nxe4+ {[%clk
0:00:03.9]} 49. dxe4 {[%clk 0:00:22.2]} 49... Rd4 {[%clk 0:00:03.4]} 50. Rc7+
{[%clk 0:00:22.6]} 50... Kf6 {[%clk 0:00:03.9]} 51. Rxa7 {[%clk 0:00:22.7]}
51... Rxe4 {[%clk 0:00:04.5]} 52. Ra6 {[%clk 0:00:19.8]} 52... Re2 {[%clk
0:00:04.3]} 53. Rxb6+ {[%clk 0:00:19.3]} 53... Kf5 {[%clk 0:00:05.2]} 54. Rb8
{[%clk 0:00:17.2]} 54... Rxh2 {[%clk 0:00:04.9]} 55. b6 {[%clk 0:00:17.4]} 55...
Rh1 {[%clk 0:00:05.5]} 56. b7 {[%clk 0:00:17.5]} 56... Rb1 {[%clk 0:00:05.9]}
57. c5 {[%clk 0:00:18.1]} 57... Ke6 {[%clk 0:00:04.6]} 58. Kc4 {[%clk
0:00:15.7]} 58... Kd7 {[%clk 0:00:02.1]} 59. Rg8 {[%clk 0:00:13.6]} 59... Rxb7
{[%clk 0:00:01.3]} 60. Rg7+ {[%clk 0:00:10.5]} 60... Kc8 {[%clk 0:00:01.9]} 61.
Rxg6 {[%clk 0:00:08.2]} 61... Rb1 {[%clk 0:00:02.8]} 62. Rxh6 {[%clk 0:00:08.1]}
62... Rc1+ {[%clk 0:00:03.1]} 63. Kd5 {[%clk 0:00:08.3]} 63... Rd1+ {[%clk
0:00:03.7]} 64. Kxe5 {[%clk 0:00:08.5]} 64... Kb8 {[%clk 0:00:04.6]} 65. Rh7
{[%clk 0:00:07.7]} 65... Rc1 {[%clk 0:00:04.3]} 66. Kd6 {[%clk 0:00:07.5]} 66...
Rd1+ {[%clk 0:00:04.9]} 67. Kc6 {[%clk 0:00:07.9]} 67... Rg1 {[%clk 0:00:05.6]}
68. Rh8+ {[%clk 0:00:08.2]} 68... Ka7 {[%clk 0:00:05.4]} 69. Rg8 {[%clk
0:00:08.7]} 69... Rf1 {[%clk 0:00:05.6]} 70. g4 {[%clk 0:00:09]} 70... Rf6+
{[%clk 0:00:06.2]} 71. Kb5 {[%clk 0:00:09.5]} 71... Rf1 {[%clk 0:00:06.2]} 72.
g5 {[%clk 0:00:09.3]} 72... Rb1+ {[%clk 0:00:06.9]} 73. Kc6 {[%clk 0:00:09.5]}
73... Ra1 {[%clk 0:00:06.5]} 74. g6 {[%clk 0:00:09.4]} 74... Ra6+ {[%clk
0:00:07]} 75. Kc7 {[%clk 0:00:09.7]} 75... Ra5 {[%clk 0:00:06.3]} 76. c6 {[%clk
0:00:10]} 76... Ra1 {[%clk 0:00:06.2]} 77. g7 {[%clk 0:00:08.1]} 77... Rg1
{[%clk 0:00:06.8]} 78. Kc8 {[%clk 0:00:06.8]} 78... Rg6 {[%clk 0:00:06.7]} 79.
c7 {[%clk 0:00:07]} 79... Rg1 {[%clk 0:00:06]} 80. Kd7 {[%clk 0:00:06]} 80...
Rd1+ {[%clk 0:00:05.9]} 81. Ke8 {[%clk 0:00:05.5]} 81... Re1+ {[%clk 0:00:06.4]}
82. Kf7 {[%clk 0:00:04.8]} 82... Rf1+ {[%clk 0:00:07]} 83. Kg6 {[%clk
0:00:04.4]} 83... Rg1+ {[%clk 0:00:07.6]} 84. Kf6 {[%clk 0:00:05]} 84... Rf1+
{[%clk 0:00:07.9]} 85. Ke5 {[%clk 0:00:05.6]} 85... Re1+ {[%clk 0:00:08.6]} 86.
Kd4 {[%clk 0:00:06.1]} 86... Rd1+ {[%clk 0:00:08.8]} 87. Ke3 {[%clk 0:00:06]}
87... Re1+ {[%clk 0:00:05.8]} 88. Kf2 {[%clk 0:00:03.6]} 88... Re7 {[%clk
0:00:05.8]} 89. c8=Q {[%clk 0:00:03.6]} 89... Rf7+ {[%clk 0:00:05.9]} 90. Kg3
{[%clk 0:00:03.3]} 90... Rb7 {[%clk 0:00:05.4]} 91. Kh4 {[%clk 0:00:04.2]} 91...
Rb4+ {[%clk 0:00:05.1]} 92. Kh5 {[%clk 0:00:04.7]} 92... Rb5+ {[%clk 0:00:05.7]}
93. Kg6 {[%clk 0:00:05.6]} 93... Rb6+ {[%clk 0:00:06.3]} 94. Kh7 {[%clk
0:00:06.5]} 94... Rb2 {[%clk 0:00:04.6]} 95. Qa8+ {[%clk 0:00:07.4]} 95... Kb6
{[%clk 0:00:04.5]} 96. Qb8+ {[%clk 0:00:08.3]} 96... Kc5 {[%clk 0:00:05.4]} 97.
Qxb2 {[%clk 0:00:08.7]} 97... Kd5 {[%clk 0:00:06.3]} 98. Qe2 {[%clk 0:00:09]}
1-0